bitfinex/quotes_BTCUSD_20260311
["timestamp","ask_amount","ask_price","bid_price","bid_amount"]
[1773224018126,0.00689874,69502.0,69494.0,0.11479105]
[1773224018278,0.00689874,69502.0,69495.0,0.25794466]
[1773224018605,0.00689874,69502.0,69496.0,0.14315361]
[1773224018801,0.00689874,69502.0,69497.0,0.14315361]
[1773224019008,0.00689874,69502.0,69498.0,0.14315361]
[1773224019215,0.00689874,69502.0,69499.0,0.14315361]
[1773224019398,0.00493752,69503.0,69500.0,0.14315361]
[1773224019599,0.00493752,69503.0,69501.0,0.14315361]
[1773224019815,0.00493752,69503.0,69498.0,0.07194396]
[1773224020728,0.00493752,69503.0,69497.0,0.07194555]
[1773224020927,0.00493752,69502.0,69493.0,0.07194967]
[1773224021096,0.00493752,69500.0,69489.0,0.07195337]
[1773224022817,0.005,69498.0,69485.0,0.07215797]
[1773224024756,0.005,69498.0,69485.0,0.07315797]
[1773224025178,0.005,69498.0,69485.0,0.07215797]
[1773224025373,0.005,69498.0,69485.0,0.07315797]
[1773224025575,0.005,69497.0,69485.0,0.07315797]
[1773224025856,0.005,69497.0,69485.0,0.07215797]
[1773224026065,0.005,69497.0,69485.0,0.07315797]
[1773224027264,0.005,69497.0,69485.0,0.07215797]
[1773224027690,0.005,69497.0,69485.0,0.07315797]
[1773224027882,0.005,69497.0,69485.0,0.07215797]
[1773224028300,0.005,69497.0,69485.0,0.07315797]
[1773224030225,0.07694622,69497.0,69485.0,0.07315749]
[1773224030428,0.005,69496.0,69483.0,0.0001636]
[1773224030617,0.005,69496.0,69479.0,0.17218657]
[1773224031091,0.005,69496.0,69478.0,0.0002]
[1773224031304,0.005,69489.0,69478.0,0.0002]
[1773224031453,0.005,69487.0,69474.0,0.0001636]
[1773224031652,0.005,69487.0,69465.0,0.0001636]
[1773224031653,0.005,69485.0,69468.0,0.07197528]
[1773224031856,0.005,69483.0,69472.0,0.14364751]
[1773224032059,0.002185,69483.0,69473.0,0.14364751]
[1773224032235,0.002185,69483.0,69474.0,0.14364751]
[1773224032441,0.002185,69483.0,69465.0,0.0001636]
[1773224032442,0.002185,69483.0,69475.0,0.14364751]
[1773224032771,0.002185,69483.0,69476.0,0.14364751]
[1773224033078,0.002185,69483.0,69477.0,0.14364751]
[1773224033275,0.002185,69483.0,69475.0,9.677e-05]
[1773224033502,0.002185,69483.0,69476.0,0.14351996]
[1773224033679,0.002185,69483.0,69475.0,9.677e-05]
[1773224033904,0.00484532,69481.0,69476.0,0.14351989]
[1773224034075,0.00484532,69479.0,69475.0,9.677e-05]
[1773224034845,0.00484532,69479.0,69476.0,0.14347271]
[1773224034970,0.00484532,69479.0,69475.0,9.677e-05]
[1773224036131,0.01425335,69477.0,69475.0,9.677e-05]
[1773224036897,0.01425335,69477.0,69476.0,0.0002]
[1773224037365,0.01430941,69487.0,69476.0,0.0002]
[1773224037600,0.00116,69486.0,69477.0,0.03979975]
[1773224037728,0.07195176,69491.0,69478.0,0.14335853]
[1773224037928,0.07195176,69491.0,69479.0,0.14335853]
[1773224037929,0.00116,69490.0,69479.0,0.14335853]
[1773224038118,0.07195383,69489.0,69480.0,0.21532101]
[1773224038315,0.07195383,69489.0,69481.0,0.14335853]
[1773224038561,0.0001636,69506.0,69482.0,0.14335853]
[1773224038734,0.00116,69496.0,69483.0,0.14335853]
[1773224038914,0.01543186,69496.0,69484.0,0.14335853]
[1773224039132,0.01543186,69496.0,69485.0,0.14335853]
[1773224039332,0.01543186,69496.0,69486.0,0.14335853]
[1773224039534,0.01543186,69496.0,69487.0,0.14335853]
[1773224039870,0.01543186,69496.0,69480.0,0.07196248]
[1773224040070,0.01543186,69496.0,69481.0,0.14335214]
[1773224040270,0.01543186,69496.0,69483.0,0.07196004]
[1773224040566,0.00116,69495.0,69484.0,0.14335214]
[1773224040776,0.00116,69495.0,69485.0,0.14335214]
[1773224041034,0.00116,69496.0,69486.0,0.14335214]
[1773224041206,0.07216121,69502.0,69486.0,0.14335214]
[1773224041207,0.00116,69497.0,69487.0,0.14335214]
[1773224041380,0.01552168,69497.0,69488.0,0.14335214]
[1773224041584,0.01552168,69497.0,69489.0,0.14335214]
[1773224041788,0.01552168,69497.0,69477.0,0.07196626]
[1773224042374,0.01454631,69495.0,69477.0,0.07196626]
[1773224043273,0.01472191,69495.0,69477.0,0.07196626]
[1773224044150,0.01472191,69495.0,69485.0,0.0002]
[1773224044300,0.07194865,69494.0,69485.0,0.0002]
[1773224044477,0.01474354,69493.0,69485.0,0.0002]
[1773224045265,0.01491914,69493.0,69485.0,0.0002]
[1773224046123,0.01591914,69493.0,69485.0,0.0002]
[1773224046560,0.01176611,69491.0,69485.0,0.0002]
[1773224046734,0.01176611,69489.0,69485.0,0.0002]
[1773224050176,0.01190579,69488.0,69485.0,0.0002]
[1773224052049,0.07195551,69488.0,69485.0,0.0002]
[1773224052251,0.0121334,69487.0,69485.0,0.0002]
[1773224054793,0.01229997,69486.0,69478.0,0.0002]
[1773224055830,0.01229997,69486.0,69476.0,0.0002]
[1773224056429,0.01240847,69484.0,69476.0,0.0002]
[1773224056638,0.01240847,69482.0,69476.0,0.0002]
[1773224057275,0.01240847,69482.0,69471.0,0.0002]
[1773224058360,0.00116,69481.0,69471.0,0.0002]
[1773224058563,0.07196315,69480.0,69471.0,0.0002]
[1773224058905,0.00116,69479.0,69471.0,0.0002]
[1773224059314,0.00116,69478.0,69471.0,0.0002]
[1773224059729,0.07196223,69481.0,69471.0,0.0002]
[1773224059990,0.07195816,69485.0,69471.0,0.0002]
[1773224059991,0.07195887,69485.0,69471.0,0.0002]
[1773224060204,0.00116,69485.0,69476.0,0.0002]
[1773224060405,0.00116,69484.0,69476.0,0.0002]
[1773224060608,0.00116,69485.0,69476.0,0.0002]
[1773224060912,0.00116,69485.0,69476.0,0.00031198]
[1773224061140,0.07234603,69493.0,69476.0,0.00031198]
[1773224061324,0.00039561,69493.0,69476.0,0.00031198]
[1773224061530,0.07216567,69497.0,69481.0,0.10506554]
[1773224061531,1e-08,69497.0,69481.0,0.10506554]
[1773224061735,0.00116,69497.0,69487.0,0.03979975]
[1773224061937,0.00116,69498.0,69487.0,0.03979975]
[1773224062158,0.07216126,69502.0,69487.0,0.03979975]
[1773224062324,0.00116,69498.0,69487.0,0.03979975]
[1773224062668,0.07216126,69502.0,69488.0,0.07195486]
[1773224062831,0.00116,69498.0,69488.0,0.07195486]
[1773224063236,0.00116,69499.0,69488.0,0.07195486]
[1773224063530,0.0013344,69503.0,69488.0,0.07195486]
[1773224068062,0.00155441,69503.0,69488.0,0.07195486]
[1773224069881,0.00022001,69507.0,69493.0,0.03979975]
[1773224070086,0.00022001,69507.0,69488.0,0.07195486]
[1773224070087,1e-08,69509.0,69497.0,0.03979975]
[1773224070869,1e-08,69509.0,69498.0,0.07194451]
[1773224071277,0.00037346,69509.0,69498.0,0.07194451]
[1773224078714,0.00153346,69509.0,69498.0,0.07194451]
[1773224083861,7.5e-05,69504.0,69498.0,0.07194451]
[1773224085388,7.5e-05,69504.0,69495.0,0.07194762]
[1773224085389,0.01123476,69503.0,69495.0,0.07194762]
[1773224086711,0.02385546,69503.0,69495.0,0.07194762]
[1773224086871,0.00116,69502.0,69495.0,0.07194762]
[1773224087083,0.02501546,69502.0,69495.0,0.07194762]
[1773224088101,0.02501546,69502.0,69496.0,7.5e-05]
[1773224088610,0.02385546,69502.0,69496.0,7.5e-05]
[1773224088981,0.00116,69503.0,69496.0,7.5e-05]
[1773224089822,0.02549353,69503.0,69496.0,7.5e-05]
[1773224095816,0.00116,69503.0,69496.0,7.5e-05]
[1773224095993,0.00155441,69512.0,69496.0,7.5e-05]
[1773224096187,0.00033198,69510.0,69500.0,0.03976746]
[1773224096666,0.00022001,69516.0,69500.0,0.3976746]
[1773224096844,0.00022001,69516.0,69506.0,0.03946604]
[1773224096845,1e-08,69516.0,69506.0,0.03946604]
[1773224096985,0.01653037,69521.0,69506.0,0.04062604]
[1773224097335,1e-08,69522.0,69510.0,0.03976746]
[1773224097538,1e-08,69522.0,69511.0,0.07193106]
[1773224098044,7.5e-05,69539.0,69516.0,0.17237096]
[1773224098243,0.01656089,69534.0,69520.0,0.03976746]
[1773224098441,0.00116,69533.0,69520.0,0.03976746]
[1773224098990,0.00835544,69535.0,69520.0,0.03976746]
[1773224098991,0.00116,69532.0,69520.0,0.03976746]
[1773224099472,0.00116,69532.0,69520.0,0.04076746]
[1773224099655,0.00116,69532.0,69521.0,0.07192071]
[1773224099907,0.00116,69532.0,69525.0,0.03976746]
[1773224100307,0.00116,69533.0,69525.0,0.03976746]
[1773224100532,7.5e-05,69539.0,69521.0,0.07192071]
[1773224100870,7.5e-05,69539.0,69529.0,0.03976746]
[1773224101021,0.00116,69538.0,69529.0,0.03976746]
[1773224101222,0.00116,69538.0,69523.0,0.00116]
[1773224101523,0.00953128,69536.0,69523.0,0.00116]
[1773224101841,0.00953128,69536.0,69524.0,0.07191761]
[1773224102166,0.01069128,69536.0,69524.0,0.07191761]
[1773224106483,0.01069128,69536.0,69523.0,0.07191761]
[1773224109231,0.01069128,69536.0,69506.0,0.21523322]
[1773224109232,0.01291896,69532.0,69517.0,0.07199947]
[1773224110198,0.01291896,69532.0,69526.0,7.5e-05]
[1773224110410,0.01291896,69532.0,69517.0,0.07199947]
[1773224111008,0.01291896,69532.0,69517.0,7.499e-05]
[1773224111009,0.01296716,69530.0,69517.0,7.499e-05]
[1773224111173,0.01292966,69528.0,69517.0,7.499e-05]
[1773224112109,0.01292966,69528.0,69514.0,0.0001171]
[1773224112450,0.01292966,69528.0,69509.0,0.07200606]
[1773224113014,0.01292966,69526.0,69509.0,0.07220606]
[1773224113220,0.00116,69525.0,69509.0,0.07220606]
[1773224113390,0.01292966,69524.0,69509.0,0.07220606]
[1773224113592,0.0719145,69527.0,69510.0,0.03976746]
[1773224113791,0.01292966,69526.0,69510.0,0.03976746]
[1773224113996,0.0719145,69527.0,69510.0,0.03976746]
[1773224113997,0.01292966,69524.0,69510.0,0.03976746]
[1773224114198,0.0719145,69529.0,69509.0,0.07220606]
[1773224114199,0.07190416,69537.0,69514.0,0.03976746]
[1773224114437,0.001,69528.0,69520.0,0.03976746]
[1773224114619,0.00634163,69533.0,69520.0,0.03976746]
[1773224114818,0.00116,69532.0,69520.0,0.03976746]
[1773224115040,0.001,69528.0,69521.0,0.07192071]
[1773224115244,0.00634163,69533.0,69521.0,0.07192071]
[1773224115423,0.00656164,69538.0,69521.0,0.07192071]
[1773224115622,0.00116,69537.0,69521.0,0.07192071]
[1773224115875,0.00634163,69536.0,69521.0,0.07192071]
[1773224116003,0.00116,69535.0,69521.0,0.07192071]
[1773224116203,0.00634163,69534.0,69521.0,0.07192071]
[1773224118773,0.00116,69533.0,69521.0,0.07192071]
[1773224119325,0.00116,69533.0,69521.0,0.07212071]
[1773224120384,0.00116,69533.0,69521.0,0.07204571]
[1773224120820,7.5e-05,69530.0,69521.0,0.07204571]
[1773224122814,7.5e-05,69535.0,69521.0,0.07204571]
[1773224122990,0.00640842,69542.0,69529.0,0.03976746]
[1773224123189,0.00116,69538.0,69529.0,0.03987943]
[1773224123486,0.00116,69538.0,69530.0,0.0719114]
[1773224123686,0.00640842,69542.0,69530.0,0.0719114]
[1773224123889,0.00756842,69541.0,69530.0,0.0719114]
[1773224124401,0.00756754,69540.0,69530.0,0.0719114]
[1773224124916,0.00116,69539.0,69530.0,0.0719114]
[1773224125700,7.5e-05,69543.0,69530.0,0.07550384]
[1773224125903,0.00116,69542.0,69531.0,0.00359244]
[1773224126660,0.00116,69542.0,69530.0,0.07000849]
[1773224126865,0.00022001,69541.0,69530.0,0.07000849]
[1773224127062,0.001235,69543.0,69530.0,0.07000849]
[1773224127260,0.001235,69543.0,69533.0,0.03976746]
[1773224127261,1e-08,69543.0,69533.0,0.03976746]
[1773224127480,0.00496462,69547.0,69533.0,0.03976746]
[1773224127687,0.00116,69543.0,69534.0,0.07190726]
[1773224127902,0.00116,69543.0,69535.0,7.5e-05]
[1773224128114,0.00496462,69542.0,69535.0,7.5e-05]
[1773224128313,0.00116,69544.0,69535.0,7.5e-05]
[1773224128675,0.0001787,69549.0,69538.0,0.03976746]
[1773224128676,0.00116,69549.0,69538.0,0.03976746]
[1773224129231,1e-08,69550.0,69538.0,0.03976746]
[1773224129436,0.00496462,69554.0,69538.0,0.03976746]
[1773224129437,0.00116,69554.0,69542.0,0.10315128]
[1773224129728,0.00116,69554.0,69544.0,0.07189692]
[1773224130883,0.07304719,69554.0,69544.0,0.07189692]
[1773224131063,0.07304719,69554.0,69541.0,0.07305692]
[1773224131064,0.00496462,69553.0,69541.0,0.07305977]
[1773224131356,0.00496462,69553.0,69541.0,0.07189977]
[1773224131706,0.00496462,69551.0,69535.0,7.5e-05]
[1773224133783,0.07189017,69551.0,69535.0,7.5e-05]
[1773224133989,0.00496462,69550.0,69535.0,7.5e-05]
[1773224135406,0.00496462,69550.0,69539.0,0.00048]
[1773224135846,0.00496462,69548.0,69526.0,0.07039091]
[1773224136040,0.00496462,69546.0,69530.0,0.03976746]
[1773224136866,0.00011191,69548.0,69531.0,0.00454433]
[1773224137066,0.00116,69547.0,69536.0,0.03976746]
[1773224137286,0.00011191,69548.0,69537.0,0.00454433]
[1773224137460,0.00116,69546.0,69537.0,0.00454433]
[1773224137661,0.00116,69546.0,69536.0,0.03976746]
[1773224137662,0.00138001,69553.0,69539.0,0.00454433]
[1773224137863,0.00138001,69553.0,69541.0,0.00454433]
[1773224138262,0.00022001,69553.0,69541.0,0.00454433]
[1773224138579,0.001,69550.0,69541.0,0.00454433]
[1773224138928,0.00022001,69553.0,69541.0,0.00454433]
[1773224139143,0.00496462,69557.0,69541.0,0.00454433]
[1773224139338,0.00116,69556.0,69541.0,0.00454433]
[1773224139971,0.00116,69556.0,69543.0,7.5e-05]
[1773224140176,0.00116,69556.0,69543.0,0.00461933]
[1773224141109,0.07800928,69556.0,69548.0,7.5e-05]
[1773224141463,0.00612462,69556.0,69548.0,7.5e-05]
[1773224141868,0.07800954,69556.0,69552.0,7.5e-05]
[1773224142073,0.07304492,69556.0,69552.0,7.5e-05]
[1773224142298,0.00496462,69555.0,69552.0,7.5e-05]
[1773224143650,0.00488962,69555.0,69552.0,7.5e-05]
[1773224144347,0.07670065,69555.0,69552.0,7.5e-05]
[1773224144905,0.00496462,69554.0,69552.0,7.5e-05]
[1773224146142,0.07685165,69554.0,69548.0,7.5e-05]
[1773224146359,0.07685165,69554.0,69544.0,0.07189692]
[1773224146360,0.07685165,69554.0,69544.0,0.07182192]
[1773224148979,0.07188703,69554.0,69544.0,0.07182192]
[1773224149185,0.00496462,69553.0,69541.0,0.07189956]
[1773224151186,0.00452002,69551.0,69541.0,0.07189956]
[1773224151404,0.00452002,69551.0,69540.0,0.0721008]
[1773224151405,0.00568002,69550.0,69540.0,0.0721008]
[1773224153643,0.07189175,69549.0,69540.0,0.0721008]
[1773224154473,0.07641177,69549.0,69540.0,0.0721008]
[1773224154875,0.07189175,69549.0,69540.0,0.0002]
[1773224155190,0.00452002,69548.0,69534.0,0.07190629]
[1773224155466,0.00452002,69548.0,69529.0,0.0719114]
[1773224155467,0.07189899,69542.0,69529.0,0.0719114]
[1773224155630,0.00452002,69540.0,69529.0,0.0719114]
[1773224156870,0.00552002,69540.0,69529.0,0.0719114]
[1773224157068,0.00652002,69540.0,69529.0,0.0719114]
[1773224157451,0.07190209,69539.0,69527.0,0.07191243]
[1773224157769,0.07190209,69539.0,69533.0,0.0002]
[1773224158988,0.07290209,69539.0,69533.0,0.0002]
[1773224160654,0.00459544,69538.0,69526.0,0.07211554]
[1773224161154,0.00459544,69538.0,69526.0,0.07219054]
[1773224161993,0.00459544,69538.0,69535.0,7.5e-05]
[1773224162938,0.07649906,69538.0,69535.0,7.5e-05]
[1773224163299,0.00116,69537.0,69535.0,7.5e-05]
[1773224163467,0.001,69538.0,69535.0,7.5e-05]
[1773224163468,0.00116,69536.0,69535.0,7.5e-05]
[1773224167932,0.00216,69536.0,69535.0,7.5e-05]
[1773224168300,0.00116,69536.0,69535.0,7.5e-05]
[1773224170290,0.00116,69536.0,69529.0,0.07191243]
[1773224170937,0.07190233,69539.0,69529.0,0.07191243]
[1773224171138,0.00116,69537.0,69529.0,0.07191243]
[1773224172244,0.07306428,69537.0,69529.0,0.07191243]
[1773224172596,0.07306451,69537.0,69529.0,0.07191243]
[1773224173403,0.00116,69537.0,69529.0,0.07191243]
[1773224175068,0.07328396,69538.0,69529.0,0.07191243]
[1773224176494,0.07328396,69538.0,69530.0,7.5e-05]
[1773224177634,0.00138001,69538.0,69530.0,7.5e-05]
[1773224177928,0.07328328,69538.0,69530.0,7.5e-05]
[1773224179308,0.07428328,69538.0,69530.0,7.5e-05]
[1773224179514,0.07328328,69538.0,69530.0,7.5e-05]
[1773224181943,0.07428328,69538.0,69530.0,7.5e-05]
[1773224182151,0.00138001,69538.0,69530.0,7.5e-05]
[1773224182349,0.07656927,69543.0,69530.0,7.5e-05]
[1773224182350,7.5e-05,69543.0,69530.0,7.5e-05]
[1773224182553,0.00018689,69548.0,69534.0,0.00479108]
[1773224182554,0.00134689,69548.0,69534.0,0.00479108]
[1773224182793,0.07189042,69551.0,69539.0,0.00479108]
[1773224182995,0.00116,69549.0,69539.0,0.00479108]
[1773224183193,0.07305279,69549.0,69540.0,0.07190106]
[1773224183603,0.07305279,69549.0,69539.0,0.00479108]
[1773224183759,0.07305279,69549.0,69535.0,0.07314098]
[1773224183966,0.00022001,69545.0,69535.0,0.07314098]
[1773224184317,0.00022001,69545.0,69539.0,7.5e-05]
[1773224189028,7.5e-05,69552.0,69539.0,7.5e-05]
[1773224189184,0.00116,69558.0,69541.0,0.00479108]
[1773224189388,0.07196001,69556.0,69547.0,0.00479108]
[1773224189572,0.07196001,69556.0,69540.0,0.21165507]
[1773224189573,0.07196001,69556.0,69541.0,0.00479108]
[1773224189777,0.07196001,69556.0,69543.0,0.00479108]
[1773224189971,0.07196001,69556.0,69544.0,0.07189692]
[1773224190214,0.00477744,69555.0,69544.0,0.07189692]
[1773224191012,0.07196001,69556.0,69544.0,0.07189692]
[1773224191214,0.07196001,69556.0,69544.0,0.076688]
[1773224191589,0.07237421,69556.0,69544.0,0.076688]
[1773224191801,0.07237421,69556.0,69545.0,0.00479108]
[1773224192005,0.0004892,69556.0,69546.0,0.07189486]
[1773224192202,0.0004892,69556.0,69549.0,0.00479108]
[1773224192820,0.07237373,69556.0,69549.0,0.00479108]
[1773224193223,0.00022001,69552.0,69549.0,0.00479108]
[1773224193619,0.00047321,69552.0,69549.0,0.00479108]
[1773224195642,0.00047321,69552.0,69549.0,0.07189074]
[1773224197061,0.00047321,69552.0,69549.0,0.07668182]
[1773224197689,0.00022001,69559.0,69549.0,0.07668182]
[1773224197690,7.5e-05,69561.0,69550.0,0.00479108]
[1773224197994,0.07195477,69561.0,69550.0,0.00479108]
[1773224198210,0.00116,69560.0,69550.0,0.04452697]
[1773224198453,0.00116,69560.0,69550.0,0.00479108]
[1773224198676,0.00116,69559.0,69550.0,0.00479108]
[1773224199734,0.07188245,69558.0,69551.0,0.07188969]
[1773224201271,0.07188245,69558.0,69552.0,7.5e-05]
[1773224201506,0.07188245,69558.0,69543.0,0.07197281]
[1773224201507,0.00477744,69557.0,69543.0,0.07197281]
[1773224201721,0.00477744,69557.0,69543.0,0.07197211]
[1773224202279,0.00477744,69557.0,69543.0,7.5e-05]
[1773224202693,0.00477744,69557.0,69543.0,0.0719727]
[1773224202872,0.00477744,69557.0,69543.0,0.07208459]
[1773224203292,0.07188452,69556.0,69543.0,0.00018689]
[1773224203504,0.00477744,69555.0,69543.0,0.00018689]
[1773224205201,0.00477744,69555.0,69539.0,0.07197667]
[1773224205403,0.00477744,69553.0,69539.0,0.07197667]
[1773224205602,0.00116,69552.0,69539.0,0.07197667]
[1773224206824,0.00116,69552.0,69540.0,0.03973589]
[1773224207009,0.00116,69552.0,69541.0,0.00479108]
[1773224207215,0.00116,69560.0,69541.0,0.00479108]
[1773224207436,0.07211201,69565.0,69548.0,0.00479108]
[1773224207437,0.00116,69558.0,69548.0,0.00479108]
[1773224207666,0.00138001,69559.0,69548.0,0.00479108]
[1773224208071,0.00022001,69559.0,69548.0,0.00479108]
[1773224208670,0.00022001,69556.0,69548.0,0.00479108]
[1773224208872,0.00022001,69559.0,69548.0,0.00595108]
[1773224210284,0.00022001,69559.0,69550.0,0.00457848]
[1773224210435,0.00022001,69559.0,69550.0,0.00450348]
[1773224210678,7.5e-05,69552.0,69550.0,0.00450348]
[1773224212310,7.5e-05,69552.0,69551.0,0.07646817]
[1773224212517,0.00022001,69559.0,69551.0,0.07188969]
[1773224212734,0.00022001,69559.0,69552.0,0.00457848]
[1773224215124,0.00022001,69559.0,69553.0,0.07188762]
[1773224215669,0.07210201,69559.0,69548.0,0.073052]
[1773224215972,0.07210168,69559.0,69548.0,0.073052]
[1773224216472,0.07210168,69559.0,69548.0,0.07793507]
[1773224217472,0.00116,69558.0,69548.0,0.07793507]
[1773224218496,0.00116,69558.0,69548.0,0.07893507]
[1773224218876,0.00116,69558.0,69548.0,0.074052]
[1773224219084,0.00116,69558.0,69549.0,0.00488307]
[1773224219421,0.07304261,69558.0,69550.0,0.07189072]
[1773224219695,0.07304262,69558.0,69550.0,0.07189072]
[1773224219848,0.00116,69558.0,69550.0,0.07189072]
[1773224220049,0.00116,69558.0,69550.0,0.07677379]
[1773224220279,0.00116,69558.0,69552.0,7.5e-05]
[1773224220878,7.5e-05,69570.0,69556.0,0.00488307]
[1773224221085,0.07210278,69574.0,69555.0,0.0397014]
[1773224221086,0.000236,69574.0,69561.0,0.00488307]
[1773224221280,0.000236,69574.0,69563.0,0.00488307]
[1773224222064,0.07210193,69574.0,69563.0,0.00488307]
[1773224222238,0.00463746,69573.0,69561.0,0.07187832]
[1773224222438,0.00463746,69573.0,69557.0,0.00116]
[1773224222625,0.00463746,69573.0,69554.0,0.07188555]
[1773224223198,0.00463746,69573.0,69552.0,7.5e-05]
[1773224223397,0.00463746,69568.0,69552.0,0.07196316]
[1773224223694,0.07435027,69569.0,69552.0,0.07196316]
[1773224223695,0.00463746,69566.0,69552.0,0.07196316]
[1773224225362,0.00463746,69564.0,69552.0,7.5e-05]
[1773224227151,0.00456246,69564.0,69552.0,7.5e-05]
[1773224227904,0.00463746,69562.0,69553.0,0.07188762]
[1773224228120,0.00116,69561.0,69556.0,7.5e-05]
[1773224228328,0.00463746,69560.0,69556.0,7.5e-05]
[1773224228883,0.00456246,69560.0,69556.0,7.5e-05]
[1773224229848,0.00456246,69560.0,69548.0,0.07196748]
[1773224229849,0.07188142,69559.0,69548.0,0.07196724]
[1773224230048,0.00463746,69558.0,69548.0,0.07207915]
[1773224231513,0.07188142,69559.0,69548.0,0.07207915]
[1773224232547,0.07188142,69559.0,69548.0,0.00018691]
[1773224232755,0.00463746,69558.0,69548.0,0.00018691]
[1773224233432,0.00463746,69558.0,69543.0,7.5e-05]
[1773224233632,0.00474935,69558.0,69543.0,7.5e-05]
[1773224233859,0.00474935,69558.0,69538.0,0.07210292]
[1773224234061,0.00474935,69558.0,69538.0,0.0002]
[1773224234583,0.00463746,69556.0,69538.0,0.0002]
[1773224234945,0.00463746,69554.0,69538.0,0.0002]
[1773224235551,0.07199538,69558.0,69541.0,0.00488307]
[1773224235552,0.00011189,69558.0,69541.0,0.00488307]
[1773224235742,0.00011189,69558.0,69540.0,0.0397014]
[1773224235743,0.07199452,69558.0,69549.0,0.00488307]
[1773224236368,0.07199452,69558.0,69540.0,0.0397014]
[1773224236616,0.07188762,69553.0,69541.0,0.07190003]
[1773224236814,0.07652508,69553.0,69548.0,0.0002]
[1773224237017,0.07188762,69553.0,69548.0,0.0002]
[1773224237215,0.07188636,69555.0,69548.0,0.0002]
[1773224237810,0.00011189,69558.0,69548.0,0.0002]
[1773224238038,0.00116,69557.0,69549.0,0.00488307]
[1773224238417,0.00127189,69558.0,69549.0,0.00488307]
[1773224238573,0.07315445,69558.0,69550.0,0.07189072]
[1773224238757,0.00127189,69558.0,69550.0,0.07677379]
[1773224239160,0.00127189,69558.0,69550.0,0.07669879]
[1773224239376,7.5e-05,69552.0,69550.0,0.07174072]
[1773224239573,0.00127189,69558.0,69550.0,0.07174072]
[1773224239574,7.5e-05,69556.0,69550.0,0.07662379]
[1773224240084,0.1146873,69571.0,69550.0,0.07174072]
[1773224240342,0.1146873,69571.0,69557.0,0.00453211]
[1773224240343,0.07302996,69571.0,69557.0,0.00453211]
[1773224240551,0.00116,69570.0,69557.0,0.00453211]
[1773224240755,0.07310585,69570.0,69559.0,0.00453211]
[1773224240995,0.001235,69570.0,69559.0,0.00453211]
[1773224241298,7.5e-05,69570.0,69559.0,0.00453211]
[1773224241501,0.07194526,69570.0,69559.0,0.00453211]
[1773224242768,0.07194526,69570.0,69560.0,0.07188039]
[1773224242988,7.5e-05,69570.0,69560.0,0.07188039]
[1773224243190,7.5e-05,69570.0,69561.0,0.00453211]
[1773224243907,7.5e-05,69570.0,69560.0,0.07188039]
[1773224244081,7.5e-05,69570.0,69561.0,0.00453211]
[1773224244387,0.00029501,69574.0,69561.0,0.00453211]
[1773224244388,0.07216093,69574.0,69561.0,0.00453211]
[1773224245080,0.07216093,69574.0,69563.0,0.00453211]
[1773224245225,0.00029501,69574.0,69563.0,0.00453211]
[1773224245986,0.00145501,69574.0,69563.0,0.00453211]
[1773224246191,7.5e-05,69583.0,69563.0,0.00453211]
[1773224246439,0.07323938,69581.0,69563.0,0.00553211]
[1773224246844,0.07323938,69581.0,69563.0,0.00453211]
[1773224247001,0.07323938,69581.0,69564.0,0.07187625]
[1773224247166,0.00138001,69581.0,69565.0,0.00453211]
[1773224248127,0.00138001,69581.0,69564.0,0.07187625]
[1773224248128,0.00452225,69585.0,69564.0,0.07187625]
[1773224248129,0.07184119,69598.0,69575.0,0.00453211]
[1773224248287,0.07184119,69598.0,69581.0,0.00453211]
[1773224248502,0.0718426,69597.0,69581.0,0.00453211]
[1773224248697,0.07191864,69596.0,69581.0,0.00453211]
[1773224249101,0.0730044,69595.0,69583.0,0.00453211]
[1773224249438,0.07789996,69595.0,69582.0,0.07185766]
[1773224249637,0.07789996,69595.0,69581.0,0.07185766]
[1773224249638,0.07789996,69595.0,69580.0,0.11156075]
[1773224249834,0.00116,69594.0,69580.0,0.07185935]
[1773224250238,0.07221771,69595.0,69581.0,0.00453211]
[1773224250490,0.07221806,69595.0,69581.0,0.00453211]
[1773224251276,0.07221806,69595.0,69583.0,0.00453211]
[1773224251479,0.07221755,69595.0,69583.0,0.00453211]
[1773224253250,0.07221755,69595.0,69584.0,0.07185559]
[1773224253442,0.00116,69594.0,69584.0,0.07185559]
[1773224254773,0.00116,69594.0,69583.0,0.07193145]
[1773224255147,0.00116,69594.0,69590.0,0.00048]
[1773224255346,0.0718463,69593.0,69590.0,0.00048]
[1773224256234,0.07300619,69594.0,69590.0,0.00048]
[1773224256235,0.00116,69594.0,69590.0,0.00048]
[1773224256434,0.07300535,69594.0,69590.0,0.00048]
[1773224258140,0.0775276,69594.0,69590.0,0.00048]
[1773224258345,0.07300535,69594.0,69583.0,7.5e-05]
[1773224258552,0.07300535,69594.0,69570.0,7.5e-05]
[1773224258553,0.00452225,69592.0,69570.0,7.5e-05]
[1773224258842,0.0397014,69593.0,69570.0,7.5e-05]
[1773224258843,0.07300535,69594.0,69572.0,0.07186704]
[1773224259043,0.00452225,69593.0,69572.0,0.07186704]
[1773224259605,0.00452225,69589.0,69572.0,0.07186704]
[1773224259816,0.00452225,69586.0,69572.0,0.07186704]
[1773224260019,0.00452225,69586.0,69583.0,0.0002]
[1773224261127,0.00452225,69586.0,69576.0,0.0002]
[1773224261268,0.00452225,69586.0,69570.0,7.5e-05]
[1773224261471,0.00452225,69586.0,69568.0,0.07187181]
[1773224261692,0.00452225,69586.0,69566.0,0.07187419]
[1773224261906,0.00452225,69584.0,69566.0,0.07187419]
[1773224262400,0.00452225,69584.0,69565.0,0.07195008]
[1773224264008,0.00452225,69582.0,69565.0,0.07195008]
[1773224264312,0.00116,69581.0,69570.0,0.04423351]
[1773224264526,0.07185327,69587.0,69571.0,0.00116]
[1773224264669,0.07184712,69593.0,69575.0,0.00453211]
[1773224264870,0.07184712,69593.0,69581.0,0.00453211]
[1773224265075,0.00116,69592.0,69581.0,0.00453211]
[1773224266169,0.07184837,69591.0,69582.0,0.07185766]
[1773224267215,0.07184837,69591.0,69582.0,0.07638977]
[1773224268501,0.07184712,69593.0,69582.0,0.00453211]
[1773224268855,0.07184712,69593.0,69578.0,0.07186137]
[1773224268856,0.00452225,69591.0,69578.0,0.07186137]
[1773224270011,0.00452225,69591.0,69582.0,0.0002]
[1773224270217,0.00116,69590.0,69582.0,0.0002]
[1773224270415,0.00457903,69589.0,69582.0,0.0002]
[1773224270619,0.07185146,69588.0,69582.0,0.0002]
[1773224271941,0.07185146,69588.0,69582.0,0.000125]
[1773224272151,7.5e-05,69583.0,69582.0,5e-05]
[1773224272349,7.5e-05,69587.0,69582.0,5e-05]
[1773224272656,0.00116,69588.0,69583.0,0.00466225]
[1773224272854,0.00116,69588.0,69582.0,5e-05]
[1773224273473,7.5e-05,69591.0,69582.0,0.07190751]
[1773224273666,0.00116,69593.0,69583.0,0.00466225]
[1773224273907,0.07184527,69594.0,69583.0,0.00466225]
[1773224274128,0.00116,69592.0,69583.0,0.00466225]
[1773224274673,0.07184837,69591.0,69584.0,0.07185559]
[1773224275882,0.07300752,69592.0,69584.0,0.07185559]